fUST/lending_fUST_20241015
["ID","MTS","AMOUNT","RATE_DAILY","PERIOD"]
[340269035,1728969032250,-155.0,0.00028997,2]
[340269037,1728969032259,-0.07571673,0.0002978,2]
[340269372,1728969046739,201.0,0.00023,2]
[340269393,1728969050373,155.0,0.00025,2]
[340269395,1728969149929,159.0,0.00025,2]
[340269396,1728969249408,160.0,0.00025,2]
[340269400,1728969350076,160.0,0.00025,2]
[340269415,1728969545808,1790.1934171,0.00025,2]
[340269416,1728969545846,23.28451411,0.00025,2]
[340269417,1728969549244,170.0,0.00025,2]
[340269419,1728969650750,170.0,0.00025,2]
[340269420,1728969750038,170.0,0.00025,2]
[340269421,1728969850751,171.0,0.00025,2]
[340269423,1728969918612,300.0170501,0.000235,5]
[340269427,1728970116956,4293.75030867,0.0002066,7]
[340269428,1728970118902,14701.94812712,0.00022,30]
[340269429,1728970118928,416220.3941448,0.00022,30]
[340269430,1728970119334,202950.73227403,0.00021,60]
[340269431,1728970125052,14057.77015848,0.00016,7]
[340269435,1728970230766,166.666666,0.00023955,2]
[340269460,1728970232327,-2720.171335,0.00024552,2]
[340269462,1728970232337,-166.666666,0.00024608,2]
[340269463,1728970232347,-690.86111,0.0002463,2]
[340269464,1728970232356,-250.0,0.00024886,2]
[340269465,1728970232365,-200.0,0.00025,7]
[340269466,1728970232375,-2720.171335,0.00025237,2]
[340269467,1728970232388,-166.666666,0.00025261,2]
[340269468,1728970232398,-300.0,0.000253,2]
[340269469,1728970232407,-300.0,0.000253,2]
[340269470,1728970232416,-17331.3732227,0.00025301,2]
[340269471,1728970232426,-2824.5266634,0.00025574,2]
[340269472,1728970232435,-3000.0,0.00025633,2]
[340269473,1728970232445,-195.34825111,0.00025633,2]
[340269474,1728970232454,-166.666666,0.00025914,2]
[340269475,1728970232463,-2720.171335,0.00025922,2]
[340269476,1728970232472,-24900.0,0.00026411,2]
[340269477,1728970232481,-501.92043,0.00026532,2]
[340269478,1728970232491,-166.666666,0.00026567,2]
[340269479,1728970232500,-216.360899,0.00026692,2]
[340269480,1728970232510,-216.360899,0.00026765,2]
[340269481,1728970232520,-216.360899,0.00026839,2]
[340269482,1728970232530,-216.360899,0.00026912,2]
[340269483,1728970232544,-216.360899,0.00026985,2]
[340269484,1728970232555,-156.15321,0.00027,7]
[340269485,1728970232565,-216.360899,0.00027058,2]
[340269486,1728970232575,-216.360899,0.00027131,2]
[340269487,1728970232584,-216.360899,0.00027205,2]
[340269488,1728970232594,-166.666666,0.0002722,2]
[340269489,1728970232603,-162.710562,0.00027274,2]
[340269490,1728970232613,-216.360899,0.00027278,2]
[340269491,1728970232622,-162.710562,0.00027287,2]
[340269492,1728970232633,-162.710562,0.00027299,2]
[340269493,1728970232644,-162.710562,0.00027312,2]
[340269494,1728970232655,-156.0,0.0002732,2]
[340269495,1728970232667,-162.710562,0.00027324,2]
[340269496,1728970232678,-162.710562,0.00027336,2]
[340269497,1728970232690,-162.710562,0.00027349,2]
[340269498,1728970232700,-216.360899,0.00027351,2]
[340269499,1728970232710,-162.710562,0.00027361,2]
[340269500,1728970232721,-162.710562,0.00027374,2]
[340269501,1728970232730,-162.710562,0.00027386,2]
[340269502,1728970232739,-162.710562,0.00027398,2]
[340269503,1728970232750,-420.0,0.000274,2]
[340269504,1728970232762,-162.710562,0.00027411,2]
[340269505,1728970232773,-216.360899,0.00027424,2]
[340269506,1728970232901,-216.360899,0.00027497,2]
[340269507,1728970232911,-150.0,0.00027498,2]
[340269508,1728970232922,-670.67756001,0.000275,2]
[340269509,1728970232934,-166.685924,0.00027533,2]
[340269510,1728970232944,-216.360899,0.00027571,2]
[340269511,1728970232956,-216.360899,0.00027644,2]
[340269512,1728970232966,-250.01598123,0.00027717,2]
[340269513,1728970232977,-216.360899,0.00027717,2]
[340269514,1728970232988,-216.360899,0.0002779,2]
[340269515,1728970232997,-287.0,0.0002783,2]
[340269516,1728970233007,-216.360899,0.00027863,2]
[340269517,1728970233016,-216.360899,0.00027937,2]
[340269518,1728970233026,-150.0,0.00028,7]
[340269519,1728970233035,-216.360899,0.0002801,2]
[340269520,1728970233045,-216.360899,0.00028083,2]
[340269521,1728970233055,-8016.8555054,0.0002849,2]
[340269522,1728970233064,-151.0,0.00028722,7]
[340269523,1728970233073,-151.0,0.00028722,7]
[340269524,1728970233082,-242.35277013,0.00028722,2]
[340269525,1728970233092,-500.0,0.00028722,2]
[340269526,1728970233102,-500.0,0.00028722,2]
[340269527,1728970233111,-444.63731285,0.00028722,2]
[340269609,1728970696057,5000.0,0.0002405,2]
[340269612,1728971225099,208894.1793446,0.0001,2]
[340269647,1728971432470,-166.666666,0.00025087,2]
[340269649,1728971432480,-3000.0,0.0002557,2]
[340269651,1728971432491,-166.666666,0.00025771,2]
[340269654,1728971432503,-162.5260372,0.00026133,2]
[340269656,1728971432513,-300.0,0.00026184,2]
[340269658,1728971432522,-300.0,0.00026184,2]
[340269660,1728971432532,-1171.62062829,0.00026185,2]
[340269663,1728971432547,-18525.44437495,0.00026185,2]
[340269793,1728971446529,-457.13726334,0.00026185,2]
[340269794,1728972004114,500.0,0.0001,2]
[340269795,1728972138355,300.0,0.00024,2]
[340269797,1728972325700,7171.0,0.00027,60]
[340269798,1728972442733,166.666666,0.00023696,2]
[340269806,1728972548033,160.0006386,0.00023743,2]
[340269874,1728972638030,-1069.34338,0.00024105,2]
[340269875,1728972638041,-166.666666,0.00024342,2]
[340269876,1728972638051,-242.05218218,0.00024354,2]
[340269954,1728972825877,24900.0,0.00023704,2]
[340269956,1728972976576,166.666666,0.00023947,2]
[340269958,1728973387388,8016.85550541,0.00023219,2]
[340269959,1728973387689,8016.85550541,0.00023417,2]
[340269960,1728973388351,8016.85550541,0.00023753,2]
[340269961,1728973388624,8016.85550541,0.00024042,2]
[340269962,1728973417137,151.0,0.00024,2]
[340269966,1728973520688,712.895586,0.00023798,2]
[340269969,1728973668305,166.666666,0.00023275,2]
[340269970,1728973668515,166.666666,0.00023909,2]
[340269974,1728973716880,39156.31623059,0.00022,30]
[340269975,1728973719786,1317.4731588,0.0002,2]
[340269976,1728973720719,18803.46474308,0.0001,2]
[340270005,1728973831932,-166.666666,0.00024071,2]
[340270006,1728973831942,-345.430555,0.00024357,2]
[340270007,1728973831952,-3000.0,0.00024453,2]
[340270008,1728973831962,-300.0,0.00024464,2]
[340270009,1728973831972,-300.0,0.00024464,2]
[340270010,1728973831982,-4156.1957789,0.00024465,2]
[340270032,1728973838049,-749.14300346,0.00024465,2]
[340270034,1728973838066,-5103.88914858,0.00024465,2]
[340270044,1728973838156,-14890.77206906,0.00024465,2]
[340270047,1728973838167,-2.34399317,0.00024483,2]
[340270056,1728973838243,-710.55159283,0.00024483,2]
[340270058,1728973838253,-33.15308142,0.00024544,2]
[340270095,1728974045405,165.86909,0.00023981,2]
[340270096,1728974166358,166.666666,0.00023657,2]
[340270098,1728974524595,518.0499582,0.00023959,2]
[340270099,1728974553391,24900.0,0.00024004,2]
[340270100,1728974709044,166.666666,0.00023894,2]
[340270101,1728974915210,-237.631862,0.00024307,2]
[340270102,1728974915237,-172.715278,0.0002447,2]
[340270103,1728974915263,-166.666666,0.00024546,2]
[340270104,1728974915290,-166.666666,0.00024606,2]
[340270105,1728974915317,-237.631862,0.00024992,2]
[340270106,1728974915342,-166.666666,0.00025197,2]
[340270107,1728974915373,-237.631862,0.00025677,2]
[340270108,1728974915401,-6471.55260165,0.00025807,2]
[340270109,1728974915430,-166.666666,0.00025849,2]
[340270110,1728974915457,-166.666666,0.00025888,2]
[340270111,1728974915484,-300.0,0.00025906,2]
[340270112,1728974915512,-300.0,0.00025906,2]
[340270113,1728974915538,-211.00228814,0.00025907,2]
[340270114,1728974915563,-151.0,0.00025907,7]
[340270115,1728974915587,-151.0,0.00025907,7]
[340270116,1728974915612,-297.657786,0.00025907,7]
[340270117,1728974915639,-151.0,0.00025907,7]
[340270118,1728974915665,-154.009826,0.00025907,7]
[340270119,1728974915689,-151.0,0.00025907,7]
[340270120,1728974915715,-151.0,0.00025907,7]
[340270121,1728974915745,-151.0,0.00025907,7]
[340270122,1728974915771,-151.0,0.00025907,7]
[340270123,1728974915798,-153.468127,0.00025907,7]
[340270124,1728974915824,-260.25906971,0.00025907,2]
[340270125,1728974915849,-151.0,0.00025907,7]
[340270126,1728974915876,-151.0,0.00025907,7]
[340270127,1728974915902,-151.0,0.00025907,7]
[340270128,1728974915928,-151.0,0.00025907,7]
[340270129,1728974915954,-151.0,0.00025907,7]
[340270130,1728974915981,-151.0,0.00025907,7]
[340270131,1728974916006,-151.0,0.00025907,7]
[340270132,1728974916033,-151.0,0.00025907,7]
[340270133,1728974916061,-151.0,0.00025907,7]
[340270134,1728974916090,-151.0,0.00025907,7]
[340270135,1728974916115,-151.0,0.00025907,7]
[340270136,1728974916140,-151.0,0.00025907,7]
[340270137,1728974916168,-151.0,0.00025907,7]
[340270138,1728974916193,-151.0,0.00025907,7]
[340270139,1728974916217,-151.0,0.00025907,7]
[340270140,1728974916242,-151.0,0.00025907,7]
[340270141,1728974916269,-151.0,0.00025907,7]
[340270142,1728974916295,-225.693442,0.00025907,7]
[340270143,1728974916322,-292.942602,0.00025907,7]
[340270144,1728974916349,-332.852306,0.00025907,7]
[340270145,1728974916374,-332.852306,0.00025907,7]
[340270146,1728974916400,-332.852306,0.00025907,7]
[340270147,1728974916426,-332.852306,0.00025907,7]
[340270148,1728974916451,-332.852306,0.00025907,7]
[340270149,1728974916475,-332.852306,0.00025907,7]
[340270150,1728974916500,-332.852306,0.00025907,7]
[340270151,1728974916525,-332.852306,0.00025907,7]
[340270152,1728974916551,-332.852306,0.00025907,7]
[340270153,1728974916576,-332.852306,0.00025907,7]
[340270154,1728974916602,-332.852306,0.00025907,7]
[340270155,1728974916627,-332.852306,0.00025907,7]
[340270156,1728974916653,-332.852306,0.00025907,7]
[340270157,1728974916678,-332.852306,0.00025907,7]
[340270158,1728974916703,-332.852306,0.00025907,7]
[340270159,1728974916729,-332.852306,0.00025907,7]
[340270160,1728974916759,-332.852306,0.00025907,7]
[340270161,1728974916786,-332.852306,0.00025907,7]
[340270162,1728974916812,-332.852306,0.00025907,7]
[340270163,1728974916838,-332.852308,0.00025907,7]
[340270164,1728974916865,-151.0,0.00025907,7]
[340270165,1728974916891,-151.0,0.00025907,7]
[340270166,1728974916917,-151.0,0.00025907,7]
[340270167,1728974916944,-151.0,0.00025907,7]
[340270168,1728974917063,-151.0,0.00025907,7]
[340270169,1728974917089,-151.0,0.00025907,7]
[340270170,1728974917113,-151.0,0.00025907,7]
[340270171,1728974917137,-151.0,0.00025907,7]
[340270172,1728974917162,-151.0,0.00025907,7]
[340270173,1728974917187,-151.0,0.00025907,7]
[340270174,1728974917211,-151.0,0.00025907,7]
[340270175,1728974917236,-151.0,0.00025907,7]
[340270176,1728974917261,-151.0,0.00025907,7]
[340270177,1728974917285,-157.07357,0.00025907,7]
[340270178,1728974917310,-151.0,0.00025907,7]
[340270179,1728974917334,-151.0,0.00025907,7]
[340270180,1728974917359,-1000.0,0.00025907,7]
[340270181,1728974917383,-1000.0,0.00025907,7]
[340270182,1728974917408,-1000.0,0.00025907,7]
[340270183,1728974917433,-1000.0,0.00025907,7]
[340270184,1728974917457,-1000.0,0.00025907,7]
[340270185,1728974917481,-1000.0,0.00025907,7]
[340270186,1728974917506,-1000.0,0.00025907,7]
[340270187,1728974917530,-1000.0,0.00025907,7]
[340270188,1728974917555,-1000.0,0.00025907,7]
[340270189,1728974917579,-1000.0,0.00025907,7]
[340270190,1728974917604,-1000.0,0.00025907,7]
[340270191,1728974917631,-1000.0,0.00025907,7]
[340270192,1728974917656,-1000.0,0.00025907,7]
[340270193,1728974917682,-1000.0,0.00025907,7]
[340270194,1728974917706,-1000.0,0.00025907,7]
[340270195,1728974917731,-1000.0,0.00025907,7]
[340270196,1728974917759,-671.3503715,0.00025907,7]
[340270204,1728974961701,-300.0,0.00025906,2]
[340270205,1728974961724,-300.0,0.00025906,2]
[340270206,1728974961747,-328.6496285,0.00025907,7]
[340270207,1728974961774,-1000.0,0.00025907,7]
[340270208,1728974961798,-1000.0,0.00025907,7]
[340270209,1728974961824,-1000.0,0.00025907,7]
[340270210,1728974961851,-1000.0,0.00025907,7]
[340270211,1728974961876,-1000.0,0.00025907,7]
[340270212,1728974961905,-1000.0,0.00025907,7]
[340270213,1728974961931,-1000.0,0.00025907,7]
[340270214,1728974961955,-1000.0,0.00025907,7]
[340270215,1728974961982,-769.56145294,0.00025907,7]
[340270216,1728974962006,-151.0,0.00025907,7]
[340270217,1728974962028,-151.0,0.00025907,7]
[340270218,1728974962051,-151.0,0.00025907,7]
[340270219,1728974962075,-151.0,0.00025907,7]
[340270220,1728974962100,-151.0,0.00025907,7]
[340270221,1728974962126,-151.0,0.00025907,7]
[340270222,1728974962149,-151.0,0.00025907,7]
[340270223,1728974962174,-151.0,0.00025907,7]
[340270224,1728974962197,-151.0,0.00025907,7]
[340270225,1728974962219,-151.0,0.00025907,7]
[340270226,1728974962243,-151.0,0.00025907,7]
[340270227,1728974962268,-151.0,0.00025907,7]
[340270228,1728974962292,-151.0,0.00025907,7]
[340270229,1728974962315,-151.0,0.00025907,7]
[340270230,1728974962338,-151.0,0.00025907,7]
[340270231,1728974962366,-151.0,0.00025907,7]
[340270232,1728974962388,-154.492928,0.00025908,7]
[340270233,1728974962411,-184.63695084,0.00025908,7]
[340270234,1728974962433,-151.0,0.00025908,7]
[340270235,1728974962457,-151.0,0.00025908,7]
[340270236,1728974962480,-248.0,0.00026,2]
[340270237,1728974962506,-156.0,0.0002601,2]
[340270238,1728974962528,-248.0,0.00026164,2]
[340270239,1728974962554,-625.2376622,0.00026184,2]
[340270240,1728974962584,-151.0,0.000265,7]
[340270241,1728974962615,-151.0,0.000265,7]
[340270242,1728974962640,-166.666666,0.000265,2]
[340270243,1728974962666,-1500.0,0.000268,2]
[340270244,1728974962690,-166.666666,0.00027152,2]
[340270245,1728974962713,-248.0,0.00027185,2]
[340270246,1728974962737,-500.0,0.0002743,2]
[340270247,1728974962764,-500.0,0.0002743,2]
[340270248,1728974962787,-500.0,0.0002743,2]
[340270249,1728974962811,-419.84271564,0.0002743,2]
[340270250,1728974962835,-500.0,0.0002743,2]
[340270251,1728974962862,-500.0,0.0002743,2]
[340270252,1728974962885,-500.0,0.0002743,2]
[340270253,1728974962909,-500.0,0.0002743,2]
[340270254,1728974962946,-500.0,0.0002743,2]
[340270255,1728974962971,-500.0,0.0002743,2]
[340270256,1728974962995,-500.0,0.0002743,2]
[340270257,1728974963019,-500.0,0.0002743,2]
[340270258,1728974963043,-500.0,0.0002743,2]
[340270259,1728974963066,-500.0,0.0002743,2]
[340270260,1728974963091,-500.0,0.0002743,2]
[340270261,1728974963114,-500.0,0.0002743,2]
[340270262,1728974963137,-500.0,0.0002743,2]
[340270263,1728974963160,-499.99999999,0.0002743,2]
[340270264,1728974963184,-151.0,0.00027431,7]
[340270265,1728974963208,-151.0,0.00027431,7]
[340270266,1728974963231,-186.874444,0.00027431,7]
[340270267,1728974963255,-1500.0,0.00027433,2]
[340270268,1728974963278,-4389.58605388,0.0002799,2]
[340270269,1728974963301,-288.83,0.00028,5]
[340270270,1728974963325,-243.0,0.00028039,2]
[340270271,1728974963351,-1500.0,0.00028067,2]
[340270272,1728974963374,-275.429,0.00028225,2]
[340270273,1728974963528,-676.591,0.00028225,2]
[340270274,1728974963556,-2090.6577546,0.000285,2]
[340270275,1728974963581,-249.0,0.00028544,2]
[340270276,1728974963606,-250.0,0.000287,9]
[340270277,1728974963630,-301.48193905,0.000287,3]
[340270278,1728974963655,-1500.0,0.000287,2]
[340270279,1728974963679,-150.0,0.000287,8]
[340270280,1728974963705,-619.57026502,0.00028722,2]
[340270281,1728974963728,-2090.6577546,0.00029,2]
[340270282,1728974963752,-302.66710251,0.00029,2]
[340270283,1728974963779,-302.66710251,0.0002929,2]
[340270284,1728974963803,-1500.0,0.00029333,2]
[340270285,1728974963827,-2090.6577546,0.000295,2]
[340270286,1728974963853,-302.66710251,0.0002958,2]
[340270287,1728974963878,-150.0,0.000297,8]
[340270288,1728974963901,-207.8434821,0.000298,30]
[340270289,1728974963925,-302.66710251,0.0002987,2]
[340270290,1728974963947,-1500.0,0.00029967,2]
[340270291,1728974963969,-287.80846683,0.0003,7]
[340270292,1728974963991,-1000.0,0.0003,7]
[340270293,1728974964014,-2090.6577546,0.0003,2]
[340270294,1728974964036,-302.66710251,0.0003016,2]
[340270295,1728974964059,-248.0,0.00030447,2]
[340270296,1728974964082,-454.00065376,0.0003045,4]
[340270297,1728974964108,-2090.6577546,0.000305,2]
[340270298,1728974964130,-1500.0,0.000306,2]
[340270299,1728974964157,-10920.7913691,0.00030657,4]
[340270300,1728974964180,-454.00065376,0.0003074,4]
[340270301,1728974964201,-454.00065376,0.0003103,4]
[340270302,1728974964225,-1500.0,0.00031233,2]
[340270303,1728974964249,-454.00065376,0.0003132,4]
[340270304,1728974964271,-503.96403049,0.0003145,5]
[340270305,1728974964294,-502.98618079,0.0003145,5]
[340270306,1728974964316,-363.45363233,0.0003161,4]
[340270307,1728974964339,-1500.0,0.00031867,2]
[340270308,1728974964366,-5460.39568454,0.0003199,4]
[340270309,1728974964391,-460.74,0.0003199,3]
[340270310,1728974964414,-185.15390232,0.00031999,2]
[340270311,1728974964438,-996.91868064,0.00032,30]
[340270312,1728974964460,-1400.0,0.00032,30]
[340270313,1728974964482,-1400.0,0.00032,30]
[340270314,1728974964504,-1400.0,0.00032,30]
[340270315,1728974964527,-1400.0,0.00032,30]
[340270316,1728974964550,-1400.0,0.00032,30]
[340270317,1728974964572,-1400.0,0.00032,30]
[340270318,1728974964596,-1400.0,0.00032,30]
[340270319,1728974964618,-1400.0,0.00032,30]
[340270320,1728974964641,-1400.0,0.00032,30]
[340270321,1728974964662,-513.34189723,0.00032,30]
[340270322,1728974964685,-1400.0,0.00032,30]
[340270323,1728974964707,-1400.0,0.00032,30]
[340270324,1728974964728,-1400.0,0.00032,30]
[340270325,1728974964750,-1400.0,0.00032,30]
[340270326,1728974964775,-2595.01046675,0.00032,30]
[340270327,1728974964796,-500.0,0.00032,30]
[340270328,1728974964818,-500.0,0.00032,30]
[340270329,1728974964839,-500.0,0.00032,30]
[340270330,1728974964863,-532.43702797,0.00032,30]
[340270331,1728974964884,-500.0,0.00032,30]
[340270332,1728974964905,-813.7,0.00032,30]
[340270333,1728974964929,-931.55799422,0.00032,30]
[340270334,1728974964951,-248.0,0.0003235,2]
[340270335,1728974964973,-1500.0,0.000325,2]
[340270336,1728974964996,-248.0,0.00032622,2]
[340270337,1728974965018,-286.88823327,0.00032877,2]
[340270338,1728974965041,-1500.0,0.00033133,2]
[340270339,1728974965064,-5460.39568454,0.00033195,5]
[340270340,1728974965086,-165.61719665,0.0003329,35]
[340270341,1728974965110,-1500.0,0.00033767,2]
[340270342,1728974965132,-509.6265597,0.00033781,5]
[340270343,1728974965153,-312.6223274,0.00033781,2]
[340270344,1728974965175,-156.0,0.0003381,2]
[340270345,1728974965197,-248.0,0.00034253,2]
[340270346,1728974965218,-1500.0,0.000344,2]
[340270347,1728974965239,-1111.0,0.00034849,120]
[340270348,1728974965261,-156.0,0.0003499,120]
[340270349,1728974965283,-156.0,0.0003499,7]
[340270350,1728974965305,-1000.0,0.00035,7]
[340270351,1728974965326,-1000.0,0.00035,7]
[340270352,1728974965348,-1000.0,0.00035,15]
[340270353,1728974965371,-1500.0,0.00035033,2]
[340270354,1728974965395,-5460.39568454,0.00035647,5]
[340270355,1728974965417,-500.0,0.00035657,10]
[340270356,1728974965440,-1400.0,0.00035657,10]
[340270357,1728974965462,-500.0,0.00035657,10]
[340270358,1728974965484,-1400.0,0.00035657,10]
[340270359,1728974965507,-1400.0,0.00035657,10]
[340270360,1728974965530,-1400.0,0.00035657,10]
[340270361,1728974965553,-1400.0,0.00035657,10]
[340270362,1728974965575,-1400.0,0.00035657,10]
[340270363,1728974965598,-1400.0,0.00035657,10]
[340270364,1728974965620,-1400.0,0.00035657,10]
[340270365,1728974965642,-1400.0,0.00035657,10]
[340270366,1728974965665,-1400.0,0.00035657,10]
[340270367,1728974965688,-1400.0,0.00035657,10]
[340270368,1728974965710,-1400.0,0.00035657,10]
[340270369,1728974965733,-1400.0,0.00035657,10]
[340270370,1728974965756,-1400.0,0.00035657,10]
[340270371,1728974965780,-1400.0,0.00035657,10]
[340270372,1728974965801,-501.86558754,0.00035657,10]
[340270373,1728974965824,-500.0,0.00035657,10]
[340270374,1728974965847,-500.0,0.00035657,10]
[340270375,1728974965872,-500.0,0.00035657,10]
[340270376,1728974965897,-500.0,0.00035657,10]
[340270377,1728974966014,-500.0,0.00035657,10]
[340270378,1728974966039,-500.0,0.00035657,10]
[340270379,1728974966067,-500.0,0.00035657,10]
[340270380,1728974966090,-500.0,0.00035657,10]
[340270381,1728974966119,-500.0,0.00035657,10]
[340270382,1728974966142,-500.0,0.00035657,10]
[340270383,1728974966164,-1500.0,0.00035667,2]
[340270384,1728974966187,-2000.0,0.00036,52]
[340270385,1728974966212,-1000.0,0.00036,7]
[340270386,1728974966235,-1500.0,0.000363,2]
[340270387,1728974966257,-172.715278,0.00036704,2]
[340270388,1728974966283,-212.58423251,0.00036822,2]
[340270389,1728974966308,-156.0,0.0003693,5]
[340270390,1728974966332,-1500.0,0.00036933,2]
[340270391,1728974966355,-10920.7913691,0.0003698,5]
[340270392,1728974966381,-3727.3398079,0.00037,30]
[340270393,1728974966403,-150.0,0.00037,120]
[340270394,1728974966427,-10000.0,0.00037,7]
[340270395,1728974966449,-2466.7,0.00037,75]
[340270396,1728974966472,-786.74558612,0.00037,20]
[340270397,1728974966494,-150.112233,0.000375,7]
[340270398,1728974966517,-1500.0,0.00037567,2]
[340270399,1728974966541,-1000.0,0.00038,7]
[340270400,1728974966564,-1000.0,0.00038,7]
[340270401,1728974966587,-1000.0,0.00038,7]
[340270402,1728974966616,-1000.0,0.00038,30]
[340270403,1728974966638,-1000.0,0.00038,60]
[340270404,1728974966663,-868.54010009,0.00038,7]
[340270405,1728974966691,-1500.0,0.000382,2]
[340270406,1728974966717,-150.112233,0.000382,6]
[340270407,1728974966743,-251.58,0.00038356,7]
[340270408,1728974966767,-150.112233,0.000386,6]
[340270409,1728974966793,-321.90905038,0.00038795,7]
[340270410,1728974966816,-1500.0,0.00038833,2]
[340270411,1728974966838,-156.0,0.0003887,15]
[340270412,1728974966862,-3028.03065802,0.0003888,120]
[340270413,1728974966886,-250.0,0.00039,60]
[340270414,1728974967127,440.09,0.0003199,10]
[340270415,1728974978738,-500.0,0.00039213,5]
[340270416,1728974978761,-150.112233,0.000394,7]
[340270417,1728974978788,-1500.0,0.00039467,2]
[340270418,1728974978811,-259.8084062,0.00039471,5]
[340270419,1728974978834,-5460.39568454,0.0003969,5]
[340270420,1728974978860,-13849.04163958,0.000397,7]
[340270421,1728974978883,-150.112233,0.000397,7]
[340270422,1728974978907,-5460.39568454,0.00039758,5]
[340270423,1728974978928,-10282.25608734,0.00039778,45]
[340270424,1728974978954,-30517.25688908,0.00039778,45]
[340270437,1728975040647,-521.03138517,0.00039466,2]
[340270438,1728975040658,-16395.30120538,0.00039778,45]
[340270439,1728975040672,-4970.64536096,0.00039778,120]
[340270440,1728975040683,-301.54450519,0.00039798,7]
[340270441,1728975040693,-5638.43136006,0.0003989,2]
[340270442,1728975040707,-24.17716641,0.0003989,2]
[340270443,1728975040716,-415.60415565,0.000399,2]
[340270444,1728975040755,-987.52075968,0.000399,2]
[340270445,1728975040766,-500.76480561,0.00039973,5]
[340270446,1728975040777,-500.0,0.00039973,5]
[340270447,1728975040786,-80.39389908,0.0003998,6]
[340270457,1728975044153,-5380.00178546,0.0003998,6]
[340270458,1728975044164,-295.05254439,0.0003998,14]
[340270459,1728975044175,-10920.7913691,0.0003999,6]
[340270460,1728975044184,-1663.59,0.0003999,10]
[340270461,1728975044194,-1386.32,0.0003999,10]
[340270462,1728975044205,-1155.27,0.0003999,10]
[340270463,1728975044215,-500.0,0.00039999,31]
[340270464,1728975044225,-435.53807952,0.00039999,31]
[340270465,1728975044236,-8643.80058062,0.0004,30]
[340270503,1728976204213,350.0,0.00027,60]
[340270547,1728976232425,-1500.0,0.000268,2]
[340270549,1728976232434,-160.996849,0.00028556,2]
[340270551,1728976232444,-165.86909,0.00029022,2]
[340270554,1728976232454,-308.558919,0.00029243,2]
[340270556,1728976232467,-187.594719,0.00029274,2]
[340270558,1728976232477,-160.996849,0.00029335,2]
[340270560,1728976232487,-1478.0172874,0.00029365,2]
[340270562,1728976232496,-300.0,0.0002976,2]
[340270564,1728976232506,-240.56243854,0.0002976,2]
[340270616,1728976240403,-59.43756146,0.0002976,2]
[340270617,1728976240414,-595.33243854,0.0002976,2]
[340270634,1728977125821,8643.8005806,0.0002,7]
[340270636,1728977289937,4418.0,0.000167,2]
[340270638,1728977297578,213.71403706,0.000123,2]
[340270639,1728977299060,5534.03065065,0.0002,2]
[340270640,1728977299498,2757.73247377,0.000125,2]
[340270641,1728977304844,333.14267908,0.000212,2]
[340270642,1728977306446,1323.62531934,0.000223,2]
[340270643,1728977306606,260.39837562,0.00021,2]
[340270644,1728977309436,945.52185229,0.000176,2]
[340270645,1728977311236,11764.83725553,0.000134,2]
[340270646,1728977312139,266.55461909,0.00014114,2]
[340270647,1728977314141,510.98,0.0002,2]
[340270648,1728977319331,10221.07223275,0.00021,2]
[340270649,1728977319360,234.67046733,0.00021,2]
[340270650,1728977320401,7958.5140424,0.0002,2]